fUST/lending_fUST_20240416
["ID","MTS","AMOUNT","RATE_DAILY","PERIOD"]
[322693987,1713221438690,-1378.88199519,0.0002847,2]
[322693988,1713221438698,-223.75485184,0.00028627,2]
[322693989,1713221438708,-166.666666,0.00028679,2]
[322693990,1713221438717,-170.617272,0.00028701,2]
[322693991,1713221438727,-199.42410587,0.0002891,2]
[322693992,1713221438735,-470.72269089,0.0002891,2]
[322693993,1713221438744,-170.8529116,0.0002891,2]
[322693994,1713221438753,-1088.76018233,0.0002891,2]
[322693995,1713221438762,-2007.62821039,0.0002891,2]
[322693996,1713221438771,-5791.45874465,0.0002891,2]
[322693997,1713221438781,-237.33901752,0.00028911,2]
[322693998,1713221438790,-587.0,0.0002922,2]
[322693999,1713221438799,-166.666666,0.00029321,2]
[322694000,1713221438808,-577.60860636,0.00029473,4]
[322694001,1713221438817,-1378.88199519,0.0002954,2]
[322694002,1713221438826,-166.666666,0.00029962,2]
[322694003,1713221438835,-161.0,0.0003,2]
[322694005,1713221438846,-253.54419555,0.0003,4]
[322694006,1713221438854,-181.0,0.0003,2]
[322694007,1713221438863,-2000.0,0.00030036,2]
[322694009,1713221438872,-587.0,0.00030119,2]
[322694010,1713221438882,-279.02852297,0.00030134,4]
[322694011,1713221438891,-155.15459774,0.00030134,4]
[322694012,1713221438900,-247.28140507,0.00030134,4]
[322694013,1713221438910,-227.27653173,0.00030135,4]
[322694014,1713221438919,-500.0,0.00030135,2]
[322694015,1713221438928,-500.0,0.00030135,2]
[322694016,1713221438937,-500.0,0.00030135,2]
[322694017,1713221438947,-500.0,0.00030135,2]
[322694018,1713221438956,-444.4831054,0.00030135,2]
[322694019,1713221438965,-266.59597019,0.00030135,2]
[322694020,1713221438974,-500.0,0.00030135,2]
[322694021,1713221438983,-500.0,0.00030135,2]
[322694022,1713221438992,-500.0,0.00030135,2]
[322694023,1713221439002,-500.0,0.00030135,2]
[322694024,1713221439011,-419.31733868,0.00030135,2]
[322694025,1713221439021,-546.03529503,0.00030135,2]
[322694026,1713221439030,-500.0,0.00030135,2]
[322694027,1713221439039,-551.98054733,0.00030135,2]
[322694028,1713221439048,-200.0,0.00030135,2]
[322694029,1713221439058,-220.44725631,0.00030135,2]
[322694030,1713221439067,-500.0,0.00030135,2]
[322694031,1713221439076,-500.0,0.00030135,2]
[322694032,1713221439084,-500.0,0.00030135,2]
[322694033,1713221439093,-500.0,0.00030135,2]
[322694034,1713221439102,-500.0,0.00030135,2]
[322694035,1713221439111,-500.0,0.00030136,2]
[322694036,1713221439120,-810.58,0.00030136,2]
[322694037,1713221439128,-500.0,0.00030136,2]
[322694038,1713221439137,-500.0,0.00030136,2]
[322694039,1713221439146,-500.0,0.00030136,2]
[322694040,1713221439155,-500.0,0.00030136,2]
[322694041,1713221439165,-500.0,0.00030136,2]
[322694042,1713221439174,-500.0,0.00030136,2]
[322694043,1713221439183,-669.09,0.00030136,2]
[322694044,1713221439192,-500.0,0.00030136,2]
[322694045,1713221439201,-188.80623223,0.00030136,2]
[322694046,1713221439210,-1175.42,0.00030136,2]
[322694047,1713221439219,-636.37,0.00030136,2]
[322694048,1713221439228,-500.0,0.00030136,2]
[322694049,1713221439237,-492.31946975,0.00030136,2]
[322694050,1713221439246,-500.0,0.00030136,2]
[322694051,1713221439255,-500.0,0.00030136,2]
[322694052,1713221439264,-594.06,0.00030136,2]
[322694053,1713221439273,-500.0,0.00030136,2]
[322694054,1713221439283,-500.0,0.00030136,2]
[322694055,1713221439291,-500.0,0.00030136,2]
[322694056,1713221439300,-500.0,0.00030136,2]
[322694057,1713221439309,-500.0,0.00030136,2]
[322694058,1713221439318,-500.0,0.00030136,2]
[322694059,1713221439327,-500.0,0.00030136,2]
[322694060,1713221439337,-500.0,0.00030136,2]
[322694061,1713221439346,-500.97873739,0.00030136,2]
[322694062,1713221439355,-500.0,0.00030136,2]
[322694063,1713221439365,-500.0,0.00030136,2]
[322694064,1713221439374,-500.0,0.00030136,2]
[322694065,1713221439383,-500.0,0.00030136,2]
[322694066,1713221439392,-579.09477192,0.00030136,2]
[322694067,1713221439401,-500.0,0.00030136,2]
[322694068,1713221439410,-240.38877538,0.00030136,2]
[322694069,1713221439419,-500.0,0.00030136,2]
[322694070,1713221439429,-500.0,0.00030136,2]
[322694071,1713221439438,-500.0,0.00030136,2]
[322694072,1713221439448,-500.0,0.00030136,2]
[322694073,1713221439458,-500.0,0.00030136,2]
[322694074,1713221439468,-500.0,0.00030136,2]
[322694075,1713221439477,-381.30544139,0.00030136,2]
[322694076,1713221439486,-500.0,0.00030136,2]
[322694077,1713221439498,-500.0,0.00030136,2]
[322694078,1713221439507,-500.0,0.00030136,2]
[322694079,1713221439516,-642.69444676,0.00030136,2]
[322694080,1713221439525,-500.0,0.00030136,2]
[322694081,1713221439535,-500.0,0.00030136,2]
[322694082,1713221439545,-500.0,0.00030136,2]
[322694083,1713221439554,-504.35,0.00030136,2]
[322694084,1713221439563,-500.0,0.00030136,2]
[322694085,1713221439572,-500.0,0.00030136,2]
[322694086,1713221439581,-500.0,0.00030136,2]
[322694087,1713221439591,-500.0,0.00030136,2]
[322694088,1713221439601,-500.0,0.00030136,2]
[322694089,1713221439612,-500.0,0.00030136,2]
[322694090,1713221439621,-500.0,0.00030136,2]
[322694091,1713221439633,-500.0,0.00030136,2]
[322694093,1713221439642,-500.0,0.00030136,2]
[322694094,1713221439651,-515.0,0.00030136,2]
[322694095,1713221439660,-500.0,0.00030136,2]
[322694096,1713221439673,-501.29666527,0.00030136,2]
[322694097,1713221439682,-546.55355523,0.00030136,2]
[322694098,1713221439691,-500.0,0.00030136,2]
[322694099,1713221439700,-500.0,0.00030136,2]
[322694100,1713221439709,-500.0,0.00030136,2]
[322694101,1713221439718,-631.59842623,0.00030136,2]
[322694102,1713221439727,-500.0,0.00030136,2]
[322694103,1713221439736,-500.0,0.00030136,2]
[322694104,1713221439746,-538.83616492,0.00030136,2]
[322694105,1713221439755,-500.0,0.00030136,2]
[322694106,1713221439764,-5437.54,0.00030136,2]
[322694107,1713221439774,-503.22820684,0.00030136,2]
[322694108,1713221439783,-500.0,0.00030136,2]
[322694109,1713221439792,-503.97262849,0.00030136,2]
[322694111,1713221439801,-500.0,0.00030136,2]
[322694112,1713221439810,-517.96,0.00030136,2]
[322694113,1713221439819,-500.0,0.00030136,2]
[322694114,1713221439829,-500.0,0.00030136,2]
[322694115,1713221439839,-500.0,0.00030136,2]
[322694116,1713221439848,-500.0,0.00030136,2]
[322694117,1713221439858,-500.0,0.00030136,2]
[322694118,1713221439867,-507.94373631,0.00030136,2]
[322694119,1713221439876,-757.64,0.00030136,2]
[322694120,1713221439885,-500.0,0.00030136,2]
[322694121,1713221439895,-930.44,0.00030136,2]
[322694122,1713221439906,-500.0,0.00030136,2]
[322694123,1713221439916,-500.0,0.00030136,2]
[322694124,1713221439926,-500.0,0.00030136,2]
[322694125,1713221439936,-526.52220413,0.00030136,2]
[322694126,1713221439945,-500.0,0.00030136,2]
[322694127,1713221439954,-217.25260511,0.00030136,2]
[322694128,1713221439964,-500.0,0.00030136,2]
[322694129,1713221439973,-500.0,0.00030136,2]
[322694130,1713221439982,-500.0,0.00030136,2]
[322694131,1713221439991,-500.0,0.00030136,2]
[322694132,1713221440000,-500.0,0.00030136,2]
[322694133,1713221440009,-500.0,0.00030136,2]
[322694134,1713221440018,-500.0,0.00030136,2]
[322694135,1713221440027,-500.0,0.00030136,2]
[322694136,1713221440036,-500.0,0.00030136,2]
[322694137,1713221440044,-500.0,0.00030136,2]
[322694138,1713221440054,-500.0,0.00030136,2]
[322694139,1713221440062,-500.0,0.00030136,2]
[322694140,1713221440072,-523.2291265,0.00030136,2]
[322694141,1713221440081,-500.0,0.00030136,2]
[322694142,1713221440089,-500.0,0.00030136,2]
[322694143,1713221440098,-500.0,0.00030136,2]
[322694144,1713221440107,-500.0,0.00030136,2]
[322694145,1713221440116,-502.23373953,0.00030136,2]
[322694146,1713221440125,-500.0,0.00030136,2]
[322694147,1713221440134,-500.0,0.00030136,2]
[322694148,1713221440143,-2198.16,0.00030136,7]
[322694149,1713221440153,-500.0,0.00030136,2]
[322694150,1713221440162,-492.6213127,0.00030136,2]
[322694151,1713221440268,-500.0,0.00030136,2]
[322694152,1713221440301,-500.0,0.00030136,2]
[322694153,1713221440312,-500.0,0.00030136,2]
[322694154,1713221440323,-500.0,0.00030136,2]
[322694155,1713221440333,-500.0,0.00030136,2]
[322694156,1713221440342,-500.0,0.00030136,2]
[322694157,1713221440351,-301.9546303,0.00030136,2]
[322694158,1713221440361,-500.0,0.00030136,2]
[322694161,1713221440371,-523.24,0.00030136,2]
[322694162,1713221440381,-500.0,0.00030136,2]
[322694164,1713221440390,-500.0,0.00030136,2]
[322694166,1713221440400,-500.0,0.00030136,2]
[322694168,1713221440411,-503.34051274,0.00030136,2]
[322694170,1713221440421,-500.0,0.00030136,2]
[322694172,1713221440430,-494.28968635,0.00030136,2]
[322694174,1713221440439,-500.0,0.00030136,2]
[322694177,1713221440449,-500.0,0.00030136,2]
[322694179,1713221440459,-500.0,0.00030136,2]
[322694181,1713221440468,-500.0,0.00030136,2]
[322694183,1713221440477,-500.0,0.00030136,2]
[322694185,1713221440487,-1012.3,0.00030136,2]
[322694187,1713221440496,-500.0,0.00030136,2]
[322694189,1713221440505,-511.10971366,0.00030136,2]
[322694190,1713221440515,-431.14969109,0.00030136,2]
[322694193,1713221440524,-500.0,0.00030136,2]
[322694194,1713221440534,-500.0,0.00030136,2]
[322694196,1713221440543,-502.74619157,0.00030136,2]
[322694199,1713221440552,-500.0,0.00030136,2]
[322694201,1713221440562,-500.0,0.00030136,2]
[322694202,1713221440571,-500.0,0.00030136,2]
[322694205,1713221440581,-500.0,0.00030136,2]
[322694207,1713221440590,-500.0,0.00030136,2]
[322694208,1713221440599,-500.0,0.00030136,2]
[322694209,1713221440608,-500.0,0.00030136,2]
[322694210,1713221440617,-512.76270628,0.00030136,2]
[322694211,1713221440626,-433.44445723,0.00030136,2]
[322694212,1713221440635,-500.0,0.00030136,2]
[322694213,1713221440644,-813.33,0.00030136,2]
[322694214,1713221440654,-598.84713523,0.00030136,2]
[322694215,1713221440664,-500.0,0.00030136,2]
[322694216,1713221440678,-525.86198554,0.00030136,2]
[322694217,1713221440687,-500.0,0.00030136,2]
[322694218,1713221440695,-500.0,0.00030136,2]
[322694219,1713221440705,-500.0,0.00030136,2]
[322694220,1713221440714,-500.58997174,0.00030136,2]
[322694221,1713221440723,-1185.24,0.00030136,2]
[322694222,1713221440731,-500.0,0.00030136,2]
[322694223,1713221440741,-500.0,0.00030136,2]
[322694224,1713221440751,-500.0,0.00030136,2]
[322694225,1713221440760,-154.79876161,0.00030136,2]
[322694226,1713221440769,-500.0,0.00030136,2]
[322694227,1713221440778,-500.0,0.00030136,2]
[322694228,1713221440787,-500.0,0.00030136,2]
[322694229,1713221440796,-500.0,0.00030136,2]
[322694230,1713221440806,-500.0,0.00030136,2]
[322694231,1713221440815,-500.0,0.00030136,2]
[322694232,1713221440824,-507.1245584,0.00030136,2]
[322694233,1713221440834,-500.0,0.00030136,2]
[322694234,1713221440844,-500.0,0.00030136,2]
[322694235,1713221440853,-500.0,0.00030136,2]
[322694236,1713221440862,-500.0,0.00030136,2]
[322694237,1713221440871,-984.53,0.00030136,2]
[322694238,1713221440880,-500.0,0.00030136,2]
[322694239,1713221440889,-500.0,0.00030136,2]
[322694240,1713221440899,-500.0,0.00030136,2]
[322694242,1713221440909,-500.0,0.00030136,2]
[322694243,1713221440919,-500.0,0.00030136,2]
[322694245,1713221440928,-716.89,0.00030136,2]
[322694247,1713221440938,-15950.24,0.00030136,2]
[322694249,1713221440951,-15950.24,0.00030136,2]
[322694251,1713221440960,-500.0,0.00030136,2]
[322694253,1713221440969,-15950.24,0.00030136,2]
[322694255,1713221440978,-1505.32,0.00030136,2]
[322694257,1713221440987,-635.20176344,0.00030136,2]
[322694259,1713221440996,-500.0,0.00030136,2]
[322694261,1713221441005,-500.0,0.00030136,2]
[322694263,1713221441014,-1191.97,0.00030136,2]
[322694265,1713221441023,-500.0,0.00030136,2]
[322694267,1713221441032,-2171.88,0.00030136,2]
[322694269,1713221441041,-500.0,0.00030136,2]
[322694271,1713221441052,-500.0,0.00030136,2]
[322694273,1713221441062,-500.61513436,0.00030136,2]
[322694275,1713221441071,-500.0,0.00030136,2]
[322694277,1713221441080,-601.42,0.00030136,2]
[322694279,1713221441089,-172.13717775,0.00030136,2]
[322694281,1713221441098,-500.0,0.00030136,2]
[322694283,1713221441107,-612.64,0.00030136,2]
[322694284,1713221441116,-500.0,0.00030136,2]
[322694287,1713221441126,-500.0,0.00030136,2]
[322694289,1713221441135,-500.0,0.00030136,2]
[322694291,1713221441144,-500.0,0.00030136,2]
[322694292,1713221441153,-655.36,0.00030136,2]
[322694294,1713221441164,-500.0,0.00030136,2]
[322694297,1713221441173,-415.2594982,0.00030136,2]
[322694299,1713221441182,-500.0,0.00030136,2]
[322694301,1713221441192,-500.0,0.00030136,2]
[322694303,1713221441201,-500.0,0.00030136,2]
[322694305,1713221441210,-500.0,0.00030136,2]
[322694307,1713221441220,-500.0,0.00030136,2]
[322694309,1713221441229,-500.0,0.00030136,2]
[322694311,1713221441239,-500.0,0.00030136,2]
[322694312,1713221441248,-233.78,0.00030136,2]
[322694315,1713221441258,-500.0,0.00030136,2]
[322694317,1713221441267,-501.74727719,0.00030136,2]
[322694319,1713221441276,-500.56103648,0.00030136,2]
[322694320,1713221441286,-502.36828373,0.00030136,2]
[322694323,1713221441295,-500.0,0.00030136,2]
[322694324,1713221441305,-500.0,0.00030136,2]
[322694327,1713221441314,-500.0,0.00030136,2]
[322694329,1713221441323,-500.0,0.00030136,2]
[322694331,1713221441333,-500.0,0.00030136,2]
[322694333,1713221441342,-500.0,0.00030136,2]
[322694334,1713221441351,-500.0,0.00030136,2]
[322694336,1713221441361,-500.0,0.00030136,2]
[322694338,1713221441370,-500.0,0.00030136,2]
[322694341,1713221441380,-500.0,0.00030136,2]
[322694343,1713221441389,-736.71,0.00030136,2]
[322694345,1713221441399,-500.0,0.00030136,2]
[322694347,1713221441408,-500.0,0.00030136,2]
[322694348,1713221441418,-154.79876161,0.00030136,2]
[322694351,1713221441428,-503.82979499,0.00030136,2]
[322694353,1713221441437,-500.0,0.00030136,2]
[322694354,1713221441447,-500.0,0.00030136,2]
[322694356,1713221441457,-1843.4,0.00030136,2]
[322694358,1713221441466,-500.0,0.00030191,2]
[322694360,1713221441476,-500.0,0.00030246,2]
[322694363,1713221441485,-526.30200103,0.000303,2]
[322694365,1713221441494,-178.25969618,0.00030301,2]
[322694366,1713221441504,-500.0,0.00030409,7]
[322694368,1713221441513,-2198.16,0.00030409,7]
[322694371,1713221441523,-15950.24,0.00030409,7]
[322694373,1713221441535,-4788.14,0.00030409,7]
[322694375,1713221441544,-500.0,0.00030409,7]
[322694377,1713221441554,-810.58,0.0003041,7]
[322694379,1713221441563,-500.0,0.0003041,7]
[322694381,1713221441572,-500.0,0.0003041,7]
[322694383,1713221441581,-500.0,0.0003041,7]
[322694385,1713221441590,-669.09,0.0003041,7]
[322694387,1713221441599,-500.0,0.0003041,7]
[322694389,1713221441608,-1175.42,0.0003041,7]
[322694391,1713221441617,-636.37,0.0003041,7]
[322694393,1713221441626,-500.0,0.0003041,7]
[322694395,1713221441635,-323.40353915,0.0003041,7]
[322694397,1713221441644,-594.06,0.0003041,7]
[322694399,1713221441653,-500.0,0.0003041,7]
[322694401,1713221441663,-500.0,0.0003041,7]
[322694403,1713221441676,-500.0,0.0003041,7]
[322694405,1713221441685,-500.0,0.0003041,7]
[322694407,1713221441694,-500.0,0.0003041,7]
[322694409,1713221441703,-500.0,0.0003041,7]
[322694411,1713221441713,-500.0,0.0003041,7]
[322694413,1713221441721,-500.0,0.0003041,7]
[322694415,1713221441730,-500.0,0.0003041,7]
[322694417,1713221441739,-531.34,0.0003041,7]
[322694419,1713221441750,-500.0,0.0003041,7]
[322694421,1713221441760,-500.0,0.0003041,7]
[322694423,1713221441768,-500.0,0.0003041,7]
[322694425,1713221441777,-504.35,0.0003041,7]
[322694427,1713221441786,-500.0,0.0003041,7]
[322694429,1713221441795,-500.00000001,0.0003041,7]
[322694431,1713221441804,-500.0,0.0003041,7]
[322694433,1713221441813,-500.0,0.0003041,7]
[322694435,1713221441822,-500.0,0.0003041,7]
[322694437,1713221441831,-5437.54,0.0003041,7]
[322694439,1713221441840,-164.19010479,0.0003041,7]
[322694441,1713221441849,-517.96,0.0003041,7]
[322694443,1713221441859,-500.0,0.0003041,7]
[322694445,1713221441868,-757.64,0.0003041,7]
[322694447,1713221441877,-930.44,0.0003041,7]
[322694449,1713221441886,-500.0,0.0003041,7]
[322694451,1713221441895,-228.35,0.0003041,7]
[322694453,1713221441904,-500.0,0.0003041,7]
[322694455,1713221441914,-500.0,0.0003041,7]
[322694457,1713221441922,-500.0,0.0003041,7]
[322694459,1713221441931,-500.0,0.0003041,7]
[322694461,1713221441940,-500.0,0.0003041,7]
[322694463,1713221441949,-500.0,0.0003041,7]
[322694465,1713221441958,-500.0,0.0003041,7]
[322694467,1713221441968,-500.0,0.0003041,7]
[322694469,1713221441977,-500.0,0.0003041,7]
[322694471,1713221441985,-500.0,0.0003041,7]
[322694473,1713221441995,-523.24,0.0003041,7]
[322694475,1713221442004,-500.0,0.0003041,7]
[322694477,1713221442012,-500.0,0.0003041,7]
[322694479,1713221442021,-500.0,0.0003041,7]
[322694481,1713221442030,-1012.3,0.0003041,7]
[322694483,1713221442040,-500.0,0.0003041,7]
[322694485,1713221442049,-500.0,0.0003041,7]
[322694487,1713221442058,-500.0,0.0003041,7]
[322694489,1713221442067,-500.0,0.0003041,7]
[322694491,1713221442076,-500.0,0.0003041,7]
[322694493,1713221442085,-500.0,0.0003041,7]
[322694495,1713221442095,-813.33,0.0003041,7]
[322694497,1713221442104,-500.0,0.0003041,7]
[322694499,1713221442113,-500.0,0.0003041,7]
[322694501,1713221442122,-500.0,0.0003041,7]
[322694503,1713221442131,-500.0,0.0003041,7]
[322694505,1713221442140,-1185.24,0.0003041,7]
[322694507,1713221442149,-500.0,0.0003041,7]
[322694509,1713221442158,-500.0,0.0003041,7]
[322694510,1713221442168,-500.0,0.0003041,7]
[322694512,1713221442178,-597.0811703,0.0003041,7]
[322694515,1713221442187,-501.84482706,0.0003041,7]
[322694516,1713221442196,-500.0,0.0003041,7]
[322694518,1713221442206,-500.0,0.0003041,7]
[322694521,1713221442215,-500.0,0.0003041,7]
[322694523,1713221442224,-500.0,0.0003041,7]
[322694525,1713221442233,-500.0,0.0003041,7]
[322694527,1713221442242,-500.0,0.0003041,7]
[322694528,1713221442251,-500.0,0.0003041,7]
[322694530,1713221442260,-500.0,0.0003041,7]
[322694532,1713221442270,-984.53,0.0003041,7]
[322694535,1713221442279,-500.0,0.0003041,7]
[322694537,1713221442288,-500.0,0.0003041,7]
[322694539,1713221442298,-500.0,0.0003041,7]
[322694541,1713221442307,-716.89,0.0003041,7]
[322694543,1713221442316,-500.0,0.0003041,7]
[322694545,1713221442325,-1505.32,0.0003041,7]
[322694547,1713221442334,-558.60252006,0.0003041,7]
[322694549,1713221442343,-500.0,0.0003041,7]
[322694551,1713221442353,-1191.97,0.0003041,7]
[322694553,1713221442362,-500.0,0.0003041,7]
[322694554,1713221442371,-2171.88,0.0003041,7]
[322694557,1713221442381,-264.85867433,0.0003041,7]
[322694558,1713221442390,-500.0,0.0003041,7]
[322694560,1713221442399,-500.0,0.0003041,7]
[322694561,1713221442408,-601.42,0.0003041,7]
[322694562,1713221442423,-500.0,0.0003041,7]
[322694563,1713221442432,-612.64,0.0003041,7]
[322694564,1713221442441,-500.0,0.0003041,7]
[322694566,1713221442450,-500.0,0.0003041,7]
[322694567,1713221442460,-500.0,0.0003041,7]
[322694568,1713221442469,-500.0,0.0003041,7]
[322694569,1713221442478,-655.36,0.0003041,7]
[322694570,1713221442487,-516.75394454,0.0003041,7]
[322694571,1713221442497,-497.25711445,0.0003041,7]
[322694572,1713221442506,-504.48065379,0.0003041,7]
[322694573,1713221442516,-500.0,0.0003041,7]
[322694574,1713221442525,-500.0,0.0003041,7]
[322694575,1713221442534,-500.0,0.0003041,7]
[322694576,1713221442543,-500.0,0.0003041,7]
[322694577,1713221442552,-500.0,0.0003041,7]
[322694578,1713221442561,-500.0,0.0003041,7]
[322694579,1713221442570,-500.0,0.0003041,7]
[322694582,1713221442579,-500.0,0.0003041,7]
[322694585,1713221442588,-500.0,0.0003041,7]
[322694588,1713221442597,-525.07877069,0.0003041,2]
[322694590,1713221442606,-500.0,0.0003041,7]
[322694595,1713221442644,-500.0,0.0003041,7]
[322694596,1713221442653,-500.0,0.0003041,7]
[322694597,1713221442664,-500.0,0.0003041,7]
[322694598,1713221442674,-500.0,0.0003041,7]
[322694599,1713221442683,-736.71,0.0003041,7]
[322694600,1713221442692,-500.0,0.0003041,7]
[322694601,1713221442701,-500.0,0.0003041,7]
[322694602,1713221442711,-500.0,0.0003041,7]
[322694603,1713221442719,-500.0,0.0003041,7]
[322694604,1713221442728,-161.0,0.00030411,2]
[322694605,1713221442737,-166.666666,0.00030603,2]
[322694606,1713221442746,-1378.88199519,0.0003061,2]
[322694608,1713221442755,-500.0,0.00030683,7]
[322694610,1713221442764,-2198.16,0.00030683,7]
[322694612,1713221442773,-15950.24,0.00030683,7]
[322694614,1713221442782,-4788.14,0.00030683,7]
[322694616,1713221442791,-500.0,0.00030683,7]
[322694618,1713221442800,-100694.78797388,0.00030684,5]
[322694619,1713221442809,-810.58,0.00030684,7]
[322694620,1713221442818,-500.0,0.00030684,7]
[322694621,1713221442826,-500.0,0.00030684,7]
[322694622,1713221442835,-500.0,0.00030684,7]
[322694623,1713221442844,-669.09,0.00030684,7]
[322694624,1713221442853,-500.0,0.00030684,7]
[322694625,1713221442862,-1175.42,0.00030684,7]
[322694626,1713221442870,-636.37,0.00030684,7]
[322694627,1713221442879,-500.0,0.00030684,7]
[322694628,1713221442888,-594.06,0.00030684,7]
[322694629,1713221442897,-500.0,0.00030684,7]
[322694630,1713221442905,-500.0,0.00030684,7]
[322694631,1713221442916,-553.61509925,0.00030684,7]
[322694632,1713221442925,-500.0,0.00030684,7]
[322694633,1713221442934,-500.0,0.00030684,7]
[322694634,1713221442943,-500.0,0.00030684,7]
[322694635,1713221442953,-500.0,0.00030684,7]
[322694636,1713221442961,-500.0,0.00030684,7]
[322694637,1713221442970,-500.0,0.00030684,7]
[322694638,1713221442980,-504.35,0.00030684,7]
[322694639,1713221442989,-500.0,0.00030684,7]
[322694640,1713221442998,-500.0,0.00030684,7]
[322694641,1713221443007,-500.0,0.00030684,7]
[322694642,1713221443017,-5437.54,0.00030684,7]
[322694643,1713221443026,-517.96,0.00030684,7]
[322694644,1713221443035,-500.0,0.00030684,7]
[322694645,1713221443045,-757.64,0.00030684,7]
[322694646,1713221443056,-930.44,0.00030684,7]
[322694647,1713221443065,-500.0,0.00030684,7]
[322694648,1713221443074,-500.0,0.00030684,7]
[322694650,1713221443083,-500.0,0.00030684,7]
[322694652,1713221443092,-500.0,0.00030684,7]
[322694654,1713221443101,-500.0,0.00030684,7]
[322694656,1713221443109,-500.0,0.00030684,7]
[322694658,1713221443118,-500.0,0.00030684,7]
[322694660,1713221443127,-500.0,0.00030684,7]
[322694662,1713221443136,-500.0,0.00030684,7]
[322694664,1713221443144,-523.24,0.00030684,7]
[322694666,1713221443153,-500.0,0.00030684,7]
[322694668,1713221443162,-500.0,0.00030684,7]
[322694670,1713221443170,-500.0,0.00030684,7]
[322694672,1713221443179,-1012.3,0.00030684,7]
[322694674,1713221443188,-500.0,0.00030684,7]
[322694676,1713221443197,-506.09760645,0.00030684,7]
[322694678,1713221443205,-500.0,0.00030684,7]
[322694679,1713221443214,-500.0,0.00030684,7]
[322694681,1713221443224,-813.33,0.00030684,7]
[322694683,1713221443233,-500.0,0.00030684,7]
[322694685,1713221443242,-500.0,0.00030684,7]
[322694687,1713221443251,-500.0,0.00030684,7]
[322694689,1713221443260,-500.0,0.00030684,7]
[322694691,1713221443269,-1185.24,0.00030684,7]
[322694693,1713221443279,-500.0,0.00030684,7]
[322694695,1713221443289,-500.0,0.00030684,7]
[322694698,1713221443298,-500.0,0.00030684,7]
[322694700,1713221443307,-500.0,0.00030684,7]
[322694701,1713221443316,-500.0,0.00030684,7]
[322694703,1713221443326,-500.0,0.00030684,7]
[322694705,1713221443334,-400.22865089,0.00030684,7]
[322694708,1713221443344,-984.53,0.00030684,7]
[322694712,1713221443353,-500.0,0.00030684,7]
[322694717,1713221443363,-500.0,0.00030684,7]
[322694721,1713221443373,-500.0,0.00030684,7]
[322694723,1713221443383,-716.89,0.00030684,7]
[322694726,1713221443392,-500.0,0.00030684,7]
[322694730,1713221443401,-1505.32,0.00030684,7]
[322694733,1713221443413,-1191.97,0.00030684,7]
[322694735,1713221443423,-500.0,0.00030684,7]
[322694737,1713221443433,-2171.88,0.00030684,7]
[322694739,1713221443443,-500.0,0.00030684,7]
[322694741,1713221443453,-500.0,0.00030684,7]
[322694743,1713221443462,-601.42,0.00030684,7]
[322694745,1713221443471,-500.0,0.00030684,7]
[322694747,1713221443480,-612.64,0.00030684,7]